[Event "NM-Senior Hurtig 2018"]
[Site "Frimurer Logen, Norway"]
[Date "2018.11.10"]
[Round "5.6"]
[White "Stubrud, Jan Magne"]
[Black "Wister, Finn Arild"]
[Result "1-0"]
[TimeControl "20 + 10"]
[WhiteElo "1684"]
[BlackElo "1510"]

1. g4 {[%clk 00:19:56]} {[%emt 00:00:14]} d5 {[%clk 00:19:48]} {[%emt
00:00:22]} 2. Bg2 {[%clk 00:20:04]} {[%emt 00:00:03]} Bxg4 {[%clk 00:19:41]}
{[%emt 00:00:17]} 3. c4 {[%clk 00:20:11]} {[%emt 00:00:03]} Nf6 {[%clk
00:19:11]} {[%emt 00:00:40]} 4. Nc3 {[%clk 00:20:05]} {[%emt 00:00:16]} e6
{[%clk 00:18:58]} {[%emt 00:00:24]} 5. Qb3 {[%clk 00:19:47]} {[%emt 00:00:29]}
b6 {[%clk 00:18:17]} {[%emt 00:00:51]} 6. cxd5 {[%clk 00:19:08]} {[%emt
00:00:48]} exd5 {[%clk 00:17:58]} {[%emt 00:00:28]} 7. Nxd5 {[%clk 00:19:04]}
{[%emt 00:00:15]} Nxd5 {[%clk 00:17:56]} {[%emt 00:00:12]} 8. Bxd5 {[%clk
00:18:54]} {[%emt 00:00:20]} Be6 {[%clk 00:15:56]} {[%emt 00:02:10]} 9. Bxe6
{[%clk 00:18:18]} {[%emt 00:00:47]} fxe6 {[%clk 00:16:03]} {[%emt 00:00:02]} 10.
Qxe6+ {[%clk 00:18:15]} {[%emt 00:00:13]} Qe7 {[%clk 00:15:51]} {[%emt
00:00:21]} 11. Qc8+ {[%clk 00:17:16]} {[%emt 00:01:10]} Qd8 {[%clk 00:15:51]}
{[%emt 00:00:10]} 12. Qxd8+ {[%clk 00:17:10]} {[%emt 00:00:16]} Kxd8 {[%clk
00:15:58]} {[%emt 00:00:02]} 13. Nf3 {[%clk 00:17:18]} {[%emt 00:00:02]} Nd7
{[%clk 00:15:46]} {[%emt 00:00:22]} 14. b3 {[%clk 00:17:18]} {[%emt 00:00:10]}
Be7 {[%clk 00:15:30]} {[%emt 00:00:26]} 15. Bb2 {[%clk 00:16:44]} {[%emt
00:00:44]} Bf6 {[%clk 00:15:22]} {[%emt 00:00:18]} 16. d4 {[%clk 00:16:23]}
{[%emt 00:00:31]} Re8 {[%clk 00:15:02]} {[%emt 00:00:29]} 17. Rg1 {[%clk
00:16:12]} {[%emt 00:00:22]} Kc8 {[%clk 00:14:44]} {[%emt 00:00:27]} 18. Rc1
{[%clk 00:15:59]} {[%emt 00:00:23]} Kb7 {[%clk 00:14:46]} {[%emt 00:00:09]} 19.
Ne5 {[%clk 00:15:04]} {[%emt 00:01:05]} Nxe5 {[%clk 00:13:22]} {[%emt
00:01:33]} 20. dxe5 {[%clk 00:15:10]} {[%emt 00:00:04]} Bxe5 {[%clk 00:13:30]}
{[%emt 00:00:03]} 21. Bxe5 {[%clk 00:15:11]} {[%emt 00:00:09]} Rxe5 {[%clk
00:13:37]} {[%emt 00:00:02]} 22. Rxg7 {[%clk 00:15:18]} {[%emt 00:00:04]} Rh5
{[%clk 00:13:45]} {[%emt 00:00:02]} 23. Rcxc7+ {[%clk 00:15:18]} {[%emt
00:00:11]} Ka6 {[%clk 00:13:36]} {[%emt 00:00:18]} 24. Rxh7 {[%clk 00:15:24]}
{[%emt 00:00:04]} Rxh7 {[%clk 00:13:26]} {[%emt 00:00:20]} 25. Rxh7 {[%clk
00:15:32]} {[%emt 00:00:02]} Rc8 {[%clk 00:13:33]} {[%emt 00:00:03]} 26. h4
{[%clk 00:14:45]} {[%emt 00:00:58]} 1-0

[Event "NM-Senior Hurtig 2018"]
[Site "Frimurer Logen, Norway"]
[Date "2018.11.10"]
[Round "5.7"]
[White "Synnestvedt, Jan"]
[Black "Kristiansen, Erling"]
[Result "0-1"]
[TimeControl "20 + 10"]
[WhiteElo "1941"]
[BlackElo "2126"]

1. d4 {[%clk 00:20:08]} {[%emt 00:00:02]} Nf6 {[%clk 00:20:07]} {[%emt
00:00:02]} 2. Nf3 {[%clk 00:20:16]} {[%emt 00:00:02]} d5 {[%clk 00:20:07]}
{[%emt 00:00:09]} 3. Bf4 {[%clk 00:20:24]} {[%emt 00:00:03]} e6 {[%clk
00:20:11]} {[%emt 00:00:06]} 4. e3 {[%clk 00:20:33]} {[%emt 00:00:02]} c5
{[%clk 00:20:18]} {[%emt 00:00:02]} 5. c3 {[%clk 00:20:42]} {[%emt 00:00:02]}
Nc6 {[%clk 00:20:25]} {[%emt 00:00:01]} 6. Bd3 {[%clk 00:20:35]} {[%emt
00:00:17]} Be7 {[%clk 00:20:16]} {[%emt 00:00:18]} 7. O-O {[%clk 00:20:42]}
{[%emt 00:00:04]} Nh5 {[%clk 00:20:21]} {[%emt 00:00:04]} 8. Bg3 {[%clk
00:20:50]} {[%emt 00:00:04]} Nxg3 {[%clk 00:20:28]} {[%emt 00:00:01]} 9. hxg3
{[%clk 00:20:59]} {[%emt 00:00:02]} O-O {[%clk 00:20:30]} {[%emt 00:00:07]} 10.
Nbd2 {[%clk 00:21:03]} {[%emt 00:00:07]} f5 {[%clk 00:20:31]} {[%emt 00:00:09]}
11. Bb5 {[%clk 00:20:38]} {[%emt 00:00:36]} Bd7 {[%clk 00:20:17]} {[%emt
00:00:22]} 12. Bxc6 {[%clk 00:20:46]} {[%emt 00:00:03]} Bxc6 {[%clk 00:20:21]}
{[%emt 00:00:06]} 13. dxc5 {[%clk 00:19:42]} {[%emt 00:01:14]} Bxc5 {[%clk
00:20:28]} {[%emt 00:00:03]} 14. Ne5 {[%clk 00:19:52]} Be8 {[%clk 00:19:59]}
{[%emt 00:00:39]} 15. Ndf3 {[%clk 00:19:21]} {[%emt 00:00:42]} Qc7 {[%clk
00:19:58]} {[%emt 00:00:09]} 16. Qb3 {[%clk 00:18:53]} {[%emt 00:00:39]} Bd6
{[%clk 00:19:51]} {[%emt 00:00:15]} 17. Nd3 {[%clk 00:18:49]} {[%emt 00:00:16]}
e5 {[%clk 00:19:25]} {[%emt 00:00:35]} 18. Ndxe5 {[%clk 00:18:44]} {[%emt
00:00:15]} Bc6 {[%clk 00:18:07]} {[%emt 00:01:28]} 19. Nxc6 {[%clk 00:18:43]}
{[%emt 00:00:12]} bxc6 {[%clk 00:18:15]} {[%emt 00:00:01]} 20. Nd4 {[%clk
00:18:42]} {[%emt 00:00:12]} Rae8 {[%clk 00:17:53]} {[%emt 00:00:29]} 21. c4
{[%clk 00:18:08]} {[%emt 00:00:47]} Rb8 {[%clk 00:16:05]} {[%emt 00:01:58]} 22.
Qc2 {[%clk 00:18:17]} {[%emt 00:00:02]} Qd7 {[%clk 00:15:59]} {[%emt 00:00:15]}
23. cxd5 {[%clk 00:17:49]} {[%emt 00:00:38]} cxd5 {[%clk 00:16:06]} {[%emt
00:00:02]} 24. b3 {[%clk 00:17:56]} {[%emt 00:00:04]} Rbc8 {[%clk 00:14:35]}
{[%emt 00:01:41]} 25. Qd3 {[%clk 00:18:05]} {[%emt 00:00:02]} Ba3 {[%clk
00:14:40]} {[%emt 00:00:03]} 26. Rad1 {[%clk 00:18:01]} {[%emt 00:00:16]} Rc5
{[%clk 00:13:45]} {[%emt 00:01:03]} 27. Nc2 {[%clk 00:17:52]} {[%emt 00:00:20]}
Bb2 {[%clk 00:13:43]} {[%emt 00:00:11]} 28. Nd4 {[%clk 00:16:53]} {[%emt
00:01:09]} g6 {[%clk 00:13:45]} {[%emt 00:00:07]} 29. Rb1 {[%clk 00:16:33]}
{[%emt 00:00:31]} Bxd4 {[%clk 00:12:11]} {[%emt 00:01:43]} 30. Qxd4 {[%clk
00:16:37]} {[%emt 00:00:06]} Rfc8 {[%clk 00:12:17]} {[%emt 00:00:03]} 31. Rfd1
{[%clk 00:16:04]} {[%emt 00:00:44]} a5 {[%clk 00:11:25]} {[%emt 00:01:02]} 32.
Rd2 {[%clk 00:15:50]} {[%emt 00:00:25]} Kf7 {[%clk 00:10:20]} {[%emt 00:01:13]}
33. Rbd1 {[%clk 00:15:58]} {[%emt 00:00:03]} Ke6 {[%clk 00:10:27]} {[%emt
00:00:03]} 34. f3 {[%clk 00:15:34]} {[%emt 00:00:34]} Qc7 {[%clk 00:09:57]}
{[%emt 00:00:40]} 35. b4 {[%clk 00:14:03]} {[%emt 00:01:43]} axb4 {[%clk
00:09:57]} {[%emt 00:00:09]} 36. Qxb4 {[%clk 00:14:12]} {[%emt 00:00:02]} Qxg3
{[%clk 00:09:54]} {[%emt 00:00:12]} 37. Qb6+ {[%clk 00:12:54]} {[%emt
00:01:28]} R8c6 {[%clk 00:09:06]} {[%emt 00:00:58]} 38. Qd8 {[%clk 00:12:45]}
{[%emt 00:00:19]} Qe5 {[%clk 00:07:51]} {[%emt 00:01:24]} 39. Qg8+ {[%clk
00:10:05]} {[%emt 00:02:51]} Kf6 {[%clk 00:07:33]} {[%emt 00:00:27]} 40. Kf2
{[%clk 00:09:52]} {[%emt 00:00:25]} Rc7 {[%clk 00:05:00]} {[%emt 00:02:41]} 41.
Rxd5 {[%clk 00:09:09]} {[%emt 00:00:54]} Rxd5 {[%clk 00:05:00]} {[%emt
00:00:11]} 42. Qxd5 {[%clk 00:09:14]} {[%emt 00:00:04]} Rc2+ {[%clk 00:04:55]}
{[%emt 00:00:14]} 43. Kf1 {[%clk 00:09:03]} {[%emt 00:00:23]} Qxd5 {[%clk
00:04:50]} {[%emt 00:00:15]} 44. Rxd5 {[%clk 00:09:11]} {[%emt 00:00:02]} Rxa2
{[%clk 00:04:57]} {[%emt 00:00:02]} 45. Rd7 {[%clk 00:08:57]} {[%emt 00:00:25]}
h5 {[%clk 00:04:54]} {[%emt 00:00:11]} 46. Rd6+ {[%clk 00:09:02]} {[%emt
00:00:07]} Kg7 {[%clk 00:03:55]} {[%emt 00:01:09]} 47. Rd1 {[%clk 00:08:53]}
{[%emt 00:00:19]} Kf6 {[%clk 00:03:35]} {[%emt 00:00:30]} 48. Re1 {[%clk
00:09:03]} {[%emt 00:00:01]} Ke5 {[%clk 00:03:42]} {[%emt 00:00:02]} 49. Re2
{[%clk 00:09:12]} {[%emt 00:00:02]} Ra3 {[%clk 00:03:45]} {[%emt 00:00:06]} 50.
Kf2 {[%clk 00:09:21]} {[%emt 00:00:02]} g5 {[%clk 00:03:52]} {[%emt 00:00:02]}
51. Rb2 {[%clk 00:09:30]} Ra5 {[%clk 00:03:48]} {[%emt 00:00:16]} 52. Rc2
{[%clk 00:09:39]} {[%emt 00:00:02]} h4 {[%clk 00:03:55]} {[%emt 00:00:02]} 53.
Rb2 {[%clk 00:09:48]} g4 {[%clk 00:04:00]} {[%emt 00:00:06]} 54. fxg4 {[%clk
00:08:24]} {[%emt 00:01:35]} fxg4 {[%clk 00:04:07]} {[%emt 00:00:03]} 55. Rc2
{[%clk 00:08:32]} Ra4 {[%clk 00:03:57]} {[%emt 00:00:19]} 56. Rc5+ {[%clk
00:08:39]} {[%emt 00:00:04]} Ke4 {[%clk 00:04:05]} 57. Rh5 {[%clk 00:08:48]}
g3+ {[%clk 00:04:09]} {[%emt 00:00:06]} 58. Ke2 {[%clk 00:08:55]} {[%emt
00:00:05]} Ra2+ {[%clk 00:04:17]} {[%emt 00:00:03]} 59. Kd1 {[%clk 00:08:53]}
{[%emt 00:00:11]} Kxe3 {[%clk 00:04:24]} {[%emt 00:00:03]} 60. Rxh4 {[%clk
00:09:02]} {[%emt 00:00:02]} Kf2 {[%clk 00:04:32]} 0-1

[Event "NM-Senior Hurtig 2018"]
[Site "Frimurer Logen, Norway"]
[Date "2018.11.10"]
[Round "5.9"]
[White "Taksrud, Vidar"]
[Black "Larsen, Arild"]
[Result "1/2-1/2"]
[TimeControl "20 + 10"]
[WhiteElo "1861"]
[BlackElo "1858"]

1. Nf3 {[%clk 00:20:05]} {[%emt 00:00:04]} Nc6 {[%clk 00:20:02]} {[%emt
00:00:09]} 2. c4 {[%clk 00:20:11]} {[%emt 00:00:03]} e5 {[%clk 00:20:04]}
{[%emt 00:00:09]} 3. Nc3 {[%clk 00:20:20]} {[%emt 00:00:01]} d6 {[%clk
00:19:58]} {[%emt 00:00:16]} 4. d4 {[%clk 00:20:15]} {[%emt 00:00:15]} exd4
{[%clk 00:19:46]} {[%emt 00:00:22]} 5. Nxd4 {[%clk 00:20:22]} {[%emt 00:00:02]}
Nxd4 {[%clk 00:19:23]} {[%emt 00:00:33]} 6. Qxd4 {[%clk 00:20:29]} {[%emt
00:00:04]} Nf6 {[%clk 00:19:26]} {[%emt 00:00:06]} 7. Bg5 {[%clk 00:20:27]}
{[%emt 00:00:13]} Be7 {[%clk 00:19:33]} {[%emt 00:00:03]} 8. e3 {[%clk
00:20:25]} {[%emt 00:00:12]} Bf5 {[%clk 00:19:21]} {[%emt 00:00:22]} 9. Be2
{[%clk 00:20:25]} {[%emt 00:00:10]} O-O {[%clk 00:19:16]} {[%emt 00:00:16]} 10.
O-O {[%clk 00:20:31]} {[%emt 00:00:03]} Ne4 {[%clk 00:16:43]} {[%emt 00:02:42]}
11. Bxe7 {[%clk 00:19:27]} {[%emt 00:01:15]} Qxe7 {[%clk 00:16:44]} {[%emt
00:00:02]} 12. Nd5 {[%clk 00:19:15]} {[%emt 00:00:29]} Qd7 {[%clk 00:15:59]}
{[%emt 00:00:55]} 13. f3 {[%clk 00:18:33]} {[%emt 00:00:52]} Ng5 {[%clk
00:15:49]} {[%emt 00:00:19]} 14. e4 {[%clk 00:18:34]} {[%emt 00:00:09]} Ne6
{[%clk 00:15:13]} {[%emt 00:00:47]} 15. Qe3 {[%clk 00:18:15]} {[%emt 00:00:28]}
Bg6 {[%clk 00:12:49]} {[%emt 00:02:35]} 16. Rad1 {[%clk 00:17:17]} {[%emt
00:01:08]} f6 {[%clk 00:09:56]} {[%emt 00:03:03]} 17. b4 {[%clk 00:16:45]}
{[%emt 00:00:43]} b6 {[%clk 00:09:52]} {[%emt 00:00:14]} 18. f4 {[%clk
00:16:24]} {[%emt 00:00:31]} Bf7 {[%clk 00:05:57]} {[%emt 00:04:05]} 19. Bg4
{[%clk 00:15:50]} {[%emt 00:00:44]} c6 {[%clk 00:04:58]} {[%emt 00:01:10]} 20.
c5 {[%clk 00:15:22]} {[%emt 00:00:37]} cxd5 {[%clk 00:03:20]} {[%emt 00:01:48]}
21. exd5 {[%clk 00:15:30]} {[%emt 00:00:02]} Rfe8 {[%clk 00:03:20]} {[%emt
00:00:10]} 22. Rfe1 {[%clk 00:15:18]} {[%emt 00:00:22]} Nxc5 {[%clk 00:02:40]}
{[%emt 00:00:50]} 23. Qh3 {[%clk 00:14:09]} {[%emt 00:01:19]} Qc7 {[%clk
00:01:55]} {[%emt 00:00:56]} 24. bxc5 {[%clk 00:14:10]} {[%emt 00:00:09]} Qxc5+
{[%clk 00:02:02]} {[%emt 00:00:02]} 25. Kh1 {[%clk 00:14:17]} {[%emt 00:00:02]}
h6 {[%clk 00:01:18]} {[%emt 00:00:55]} 26. Be6 {[%clk 00:13:38]} {[%emt
00:00:49]} Qc7 {[%clk 00:01:07]} {[%emt 00:00:22]} 27. f5 {[%clk 00:13:46]}
{[%emt 00:00:02]} Re7 {[%clk 00:01:04]} {[%emt 00:00:14]} 28. Rc1 {[%clk
00:13:38]} {[%emt 00:00:17]} Qb7 {[%clk 00:01:13]} {[%emt 00:00:01]} 29. Qg3
{[%clk 00:13:32]} {[%emt 00:00:15]} Rd8 {[%clk 00:01:20]} {[%emt 00:00:04]} 30.
Bxf7+ {[%clk 00:12:27]} {[%emt 00:01:15]} Kxf7 {[%clk 00:01:24]} {[%emt
00:00:06]} 31. Re6 {[%clk 00:12:17]} {[%emt 00:00:20]} Rc8 {[%clk 00:01:18]}
{[%emt 00:00:17]} 32. Rce1 {[%clk 00:12:09]} {[%emt 00:00:18]} Rxe6 {[%clk
00:01:23]} {[%emt 00:00:05]} 33. dxe6+ {[%clk 00:11:58]} {[%emt 00:00:21]} Kg8
{[%clk 00:01:23]} {[%emt 00:00:11]} 34. Qxd6 {[%clk 00:11:51]} {[%emt
00:00:16]} Qe4 {[%clk 00:01:21]} {[%emt 00:00:12]} 35. Qd1 {[%clk 00:11:42]}
{[%emt 00:00:19]} Qxf5 {[%clk 00:01:24]} {[%emt 00:00:07]} 36. e7 {[%clk
00:11:50]} Re8 {[%clk 00:01:31]} {[%emt 00:00:04]} 37. Qb3+ {[%clk 00:11:54]}
{[%emt 00:00:06]} Kh8 {[%clk 00:01:36]} {[%emt 00:00:05]} 38. Qa4 {[%clk
00:11:27]} {[%emt 00:00:38]} Rxe7 {[%clk 00:01:39]} {[%emt 00:00:07]} 39. Rd1
{[%clk 00:11:14]} {[%emt 00:00:23]} Qe5 {[%clk 00:01:44]} {[%emt 00:00:05]} 40.
h3 {[%clk 00:11:15]} {[%emt 00:00:08]} a5 {[%clk 00:01:49]} {[%emt 00:00:06]}
41. Rd8+ {[%clk 00:11:24]} {[%emt 00:00:01]} Kh7 {[%clk 00:01:58]} {[%emt
00:00:02]} 42. Qc2+ {[%clk 00:11:32]} {[%emt 00:00:01]} g6 {[%clk 00:02:06]}
{[%emt 00:00:02]} 43. Rd1 {[%clk 00:10:58]} {[%emt 00:00:44]} h5 {[%clk
00:02:06]} {[%emt 00:00:10]} 44. Qc6 {[%clk 00:10:40]} {[%emt 00:00:29]} Qe6
{[%clk 00:02:08]} {[%emt 00:00:08]} 1/2-1/2

[Event "NM-Senior Hurtig 2018"]
[Site "Frimurer Logen, Norway"]
[Date "2018.11.10"]
[Round "5.10"]
[White "Lea, Per"]
[Black "Ofstad, Per"]
[Result "1-0"]
[TimeControl "20 + 10"]
[WhiteElo "1673"]
[BlackElo "2131"]

1. e4 {[%clk 00:20:07]} {[%emt 00:00:02]} c5 {[%clk 00:18:56]} {[%emt
00:01:15]} 2. Nf3 {[%clk 00:20:15]} {[%emt 00:00:02]} d6 {[%clk 00:19:05]}
{[%emt 00:00:02]} 3. Nc3 {[%clk 00:20:18]} {[%emt 00:00:07]} a6 {[%clk
00:19:03]} {[%emt 00:00:12]} 4. d4 {[%clk 00:20:22]} {[%emt 00:00:05]} cxd4
{[%clk 00:19:11]} {[%emt 00:00:03]} 5. Nxd4 {[%clk 00:20:31]} Nc6 {[%clk
00:19:02]} {[%emt 00:00:20]} 6. Be3 {[%clk 00:20:26]} {[%emt 00:00:15]} Nf6
{[%clk 00:18:56]} {[%emt 00:00:16]} 7. Be2 {[%clk 00:20:22]} {[%emt 00:00:14]}
e6 {[%clk 00:18:21]} {[%emt 00:00:45]} 8. O-O {[%clk 00:20:24]} {[%emt
00:00:09]} Be7 {[%clk 00:18:27]} {[%emt 00:00:05]} 9. Kh1 {[%clk 00:20:12]}
{[%emt 00:00:21]} Qc7 {[%clk 00:18:32]} {[%emt 00:00:05]} 10. f4 {[%clk
00:20:00]} {[%emt 00:00:21]} Bd7 {[%clk 00:18:11]} {[%emt 00:00:30]} 11. Bf3
{[%clk 00:19:32]} {[%emt 00:00:39]} Nxd4 {[%clk 00:16:44]} {[%emt 00:01:36]} 12.
Qxd4 {[%clk 00:19:00]} {[%emt 00:00:43]} e5 {[%clk 00:16:30]} {[%emt 00:00:24]}
13. Qd2 {[%clk 00:18:57]} {[%emt 00:00:13]} Bc6 {[%clk 00:14:04]} {[%emt
00:02:36]} 14. a4 {[%clk 00:17:18]} {[%emt 00:01:49]} O-O {[%clk 00:12:28]}
{[%emt 00:01:45]} 15. Nd5 {[%clk 00:17:03]} {[%emt 00:00:25]} Bxd5 {[%clk
00:12:14]} {[%emt 00:00:24]} 16. exd5 {[%clk 00:17:05]} {[%emt 00:00:08]} Nd7
{[%clk 00:11:59]} {[%emt 00:00:25]} 17. Rfd1 {[%clk 00:15:43]} {[%emt
00:01:33]} Rac8 {[%clk 00:11:29]} {[%emt 00:00:40]} 18. c3 {[%clk 00:15:20]}
{[%emt 00:00:33]} f5 {[%clk 00:10:34]} {[%emt 00:01:04]} 19. Be2 {[%clk
00:13:45]} {[%emt 00:01:45]} Nf6 {[%clk 00:09:11]} {[%emt 00:01:33]} 20. fxe5
{[%clk 00:12:25]} {[%emt 00:01:30]} Ne4 {[%clk 00:09:18]} {[%emt 00:00:03]} 21.
Qc2 {[%clk 00:10:59]} {[%emt 00:01:37]} dxe5 {[%clk 00:09:05]} {[%emt
00:00:22]} 22. Bf3 {[%clk 00:10:46]} {[%emt 00:00:24]} Nd6 {[%clk 00:08:47]}
{[%emt 00:00:28]} 23. Be2 {[%clk 00:09:23]} {[%emt 00:01:33]} f4 {[%clk
00:07:37]} {[%emt 00:01:19]} 24. Bg1 {[%clk 00:09:31]} {[%emt 00:00:02]} Rf6
{[%clk 00:05:06]} {[%emt 00:02:41]} 25. Bf3 {[%clk 00:08:09]} {[%emt 00:01:33]}
Rcf8 {[%clk 00:04:05]} {[%emt 00:01:10]} 26. Rf1 {[%clk 00:07:57]} {[%emt
00:00:23]} Rh6 {[%clk 00:03:41]} {[%emt 00:00:33]} 27. Be4 {[%clk 00:06:43]}
{[%emt 00:01:24]} Qd7 {[%clk 00:03:14]} {[%emt 00:00:38]} 28. Rf3 {[%clk
00:05:57]} {[%emt 00:00:57]} Nf5 {[%clk 00:03:05]} {[%emt 00:00:18]} 29. Bxf5
{[%clk 00:05:54]} {[%emt 00:00:13]} Rxf5 {[%clk 00:03:00]} {[%emt 00:00:15]} 30.
c4 {[%clk 00:05:09]} {[%emt 00:00:55]} Rfh5 {[%clk 00:02:46]} {[%emt 00:00:23]}
31. c5 {[%clk 00:05:09]} {[%emt 00:00:11]} Qxd5 {[%clk 00:02:45]} {[%emt
00:00:11]} 32. Rd1 {[%clk 00:04:54]} {[%emt 00:00:25]} Qc6 {[%clk 00:02:44]}
{[%emt 00:00:10]} 33. Qc4+ {[%clk 00:04:56]} {[%emt 00:00:10]} Qe6 {[%clk
00:01:46]} {[%emt 00:01:08]} 34. Qe4 {[%clk 00:04:15]} {[%emt 00:00:51]} Qc6
{[%clk 00:01:34]} {[%emt 00:00:22]} 35. Qc4+ {[%clk 00:04:12]} {[%emt
00:00:13]} Qe6 {[%clk 00:01:39]} {[%emt 00:00:04]} 1-0

[Event "NM-Senior Hurtig 2018"]
[Site "Frimurer Logen, Norway"]
[Date "2018.11.10"]
[Round "5.11"]
[White "Skogheim, Ole Morten"]
[Black "Wibe, Per H."]
[Result "1/2-1/2"]
[TimeControl "20 + 10"]
[WhiteElo "1909"]
[BlackElo "1607"]

1. e4 {[%clk 00:20:08]} {[%emt 00:00:01]} e5 {[%clk 00:20:06]} {[%emt
00:00:04]} 2. Nf3 {[%clk 00:20:16]} {[%emt 00:00:01]} Nc6 {[%clk 00:20:15]} 3.
Bb5 {[%clk 00:20:26]} {[%emt 00:00:03]} a6 {[%clk 00:20:21]} {[%emt 00:00:04]}
4. Ba4 {[%clk 00:20:34]} {[%emt 00:00:02]} Nf6 {[%clk 00:20:29]} {[%emt
00:00:02]} 5. O-O {[%clk 00:20:41]} {[%emt 00:00:03]} Nxe4 {[%clk 00:20:33]}
{[%emt 00:00:04]} 6. d4 {[%clk 00:20:50]} {[%emt 00:00:03]} b5 {[%clk
00:20:42]} 7. Bb3 {[%clk 00:20:59]} {[%emt 00:00:02]} d5 {[%clk 00:20:51]} 8.
dxe5 {[%clk 00:21:04]} {[%emt 00:00:05]} Be6 {[%clk 00:21:00]} 9. c3 {[%clk
00:21:07]} {[%emt 00:00:07]} Bc5 {[%clk 00:21:05]} {[%emt 00:00:05]} 10. Nbd2
{[%clk 00:20:44]} {[%emt 00:00:33]} O-O {[%clk 00:21:08]} {[%emt 00:00:08]} 11.
Bc2 {[%clk 00:18:57]} {[%emt 00:01:57]} Nxf2 {[%clk 00:21:05]} {[%emt
00:00:12]} 12. Rxf2 {[%clk 00:18:56]} {[%emt 00:00:12]} f6 {[%clk 00:21:11]}
{[%emt 00:00:04]} 13. Nf1 {[%clk 00:17:25]} {[%emt 00:01:41]} Bxf2+ 14. Kxf2
fxe5 {[%clk 00:21:15]} {[%emt 00:00:03]} 15. Kg1 {[%clk 00:17:37]} {[%emt
00:00:08]} Qd6 {[%clk 00:17:26]} {[%emt 00:04:00]} 16. Ng5 {[%clk 00:17:27]}
{[%emt 00:00:20]} Bf5 {[%clk 00:17:10]} {[%emt 00:00:25]} 17. Ne3 {[%clk
00:16:30]} {[%emt 00:01:09]} e4 {[%clk 00:16:24]} {[%emt 00:00:56]} 18. Qxd5+
{[%clk 00:15:32]} {[%emt 00:01:08]} Qxd5 {[%emt 00:00:11]} 19. Nxd5 h6 {[%clk
00:14:03]} {[%emt 00:02:30]} 20. Nxc7 {[%clk 00:15:45]} {[%emt 00:00:06]} Ra7
{[%clk 00:13:41]} {[%emt 00:00:33]} 21. Nge6 {[%clk 00:15:50]} {[%emt
00:00:04]} Rf6 {[%clk 00:13:37]} {[%emt 00:00:14]} 22. Nxg7 {[%clk 00:15:01]}
{[%emt 00:00:59]} Kxg7 {[%clk 00:13:30]} {[%emt 00:00:18]} 23. Ne8+ {[%clk
00:15:09]} {[%emt 00:00:02]} Kf7 {[%clk 00:13:25]} {[%emt 00:00:14]} 24. Nxf6
{[%clk 00:15:17]} {[%emt 00:00:03]} Kxf6 {[%clk 00:13:25]} {[%emt 00:00:10]} 25.
Bxh6 {[%clk 00:15:22]} {[%emt 00:00:05]} Rd7 {[%clk 00:12:18]} {[%emt
00:01:17]} 26. Rd1 {[%clk 00:15:10]} {[%emt 00:00:22]} Rxd1+ {[%emt 00:00:54]}
27. Bxd1 {[%emt 00:00:01]} Ne5 {[%clk 00:11:24]} {[%emt 00:00:08]} 28. Be2
{[%clk 00:14:55]} {[%emt 00:00:27]} Nc4 {[%clk 00:10:37]} {[%emt 00:00:57]} 29.
Bxc4 {[%clk 00:14:51]} {[%emt 00:00:13]} bxc4 {[%clk 00:10:46]} 30. Kf2 {[%clk
00:14:54]} {[%emt 00:00:08]} Ke5 {[%clk 00:10:37]} {[%emt 00:00:19]} 31. Ke3
{[%clk 00:15:04]} Be6 {[%clk 00:10:40]} {[%emt 00:00:07]} 32. h3 {[%clk
00:14:15]} {[%emt 00:00:59]} a5 {[%clk 00:10:43]} {[%emt 00:00:08]} 33. Bf4+
{[%clk 00:14:11]} {[%emt 00:00:13]} Kd5 {[%clk 00:10:47]} {[%emt 00:00:06]} 34.
g4 {[%clk 00:14:06]} {[%emt 00:00:15]} a4 {[%clk 00:10:52]} {[%emt 00:00:04]}
35. Bg3 {[%clk 00:12:02]} {[%emt 00:02:15]} Bd7 {[%clk 00:10:55]} {[%emt
00:00:07]} 36. Kf4 {[%clk 00:11:55]} {[%emt 00:00:18]} Bc8 {[%clk 00:10:54]}
{[%emt 00:00:11]} 37. h4 {[%clk 00:12:02]} {[%emt 00:00:03]} e3 {[%clk
00:10:56]} {[%emt 00:00:08]} 38. g5 {[%clk 00:10:58]} {[%emt 00:01:14]} e2
{[%clk 00:10:57]} {[%emt 00:00:09]} 39. g6 {[%clk 00:10:46]} {[%emt 00:00:21]}
Ke6 {[%clk 00:10:50]} {[%emt 00:00:18]} 40. Kg5 {[%clk 00:10:32]} {[%emt
00:00:24]} Ke7 {[%clk 00:10:54]} {[%emt 00:00:06]} 41. h5 {[%clk 00:09:44]}
{[%emt 00:00:57]} 1/2-1/2